[Event "French Top 16-A 2024"]
[Site "Chartres"]
[Date "2024.06.01"]
[Round "2.14"]
[White "Hirth, Julien"]
[Black "Degraeve, Jean-Marc"]
[Result "0-1"]
[ECO "B03"]
[WhiteElo "2063"]
[BlackElo "2463"]
[Annotator "RC"]
[PlyCount "94"]
[EventDate "2024.06.01"]
[EventType "team-tourn"]
[EventCountry "FRA"]
[SourceTitle "playchess.com"]
[Source "ChessBase"]
[SourceQuality "1"]
[TimeControl "40/5400+30:1800+30"]

1. e4 {[%emt 0:00:20]} Nf6 {[%emt 0:00:23]} 2. e5 {[%emt 0:00:14]} Nd5 {[%emt 0:00:06]} 3. d4 {[%emt 0:00:27]} d6 {[%emt 0:00:08]} 4. c4 {[%emt 0:00:21]} Nb6 {[%emt 0:00:07]} 5. f4 {[%emt 0:00:34]} dxe5 {[%emt 0:01:23]} 6. fxe5 {[%emt 0:00:10]} Nc6 {[%emt 0:00:21]} 7. Be3 {[%emt 0:01:21]} Bf5 {[%emt 0:01:23]} 8. Nc3 {[%emt 0:00:56]} e6 {[%emt 0:00:48]} 9. Nf3 {[%emt 0:00:41]} Be7 {[%emt 0:01:12]} 10. d5 {[%emt 0:01:37]} exd5 {[%emt 0:00:28]} 11. cxd5 {[%emt 0:00:15]} Nb4 {[%emt 0:00:28]} 12. Nd4 {[%emt 0:01:33]} Bd7 {[%emt 0:00:12]} 13. e6 {[%emt 0:01:28]} fxe6 {[%emt 0:00:10]} 14. dxe6 {[%emt 0:00:08]} Bc6 {[%emt 0:00:10]} 15. a3 {[%emt 1:27:55]} Bh4+ {[%emt 0:01:22]} 16. g3 {[%emt 0:00:00]} Bxh1 {[%emt 0:00:18]} 17. axb4 {[%emt 0:00:00]} Bf6 {[%emt 0:00:44]} 18. Qg4 {[%emt 0:00:00]} O-O {[%emt 0:00:57]} 19. O-O-O {[%emt 0:00:00]} Qe8 {[%emt 0:11:21]} 20. Bd3 {[%emt 0:00:00]} h5 {[%emt 0:01:53]} 21. Qf5 {[%emt 0:00:00]} g6 {[%emt 0:00:06]} 22. Qxg6+ {[%emt 0:00:00]} Qxg6 {[%emt 0:00:06]} 23. Bxg6 {[%emt 0:00:00]} Bg2 {[%emt 0:06:41]} 24. Nf5 {[%emt 0:00:00]} Bh3 {[%emt 0:14:06]} 25. Bf7+ {[%emt 0:00:00]} Rxf7 {[%emt 0:11:19]} 26. Nh6+ {[%emt 0:00:00]} Kg7 {[%emt 0:00:08]} 27. exf7 {[%emt 0:00:00]} Kg6 {[%emt 0:17:48]} 28. Nd5 {[%emt 0:00:00]} Nxd5 {[%emt 0:02:32]} 29. Rxd5 {[%emt 0:00:00]} Be6 {[%emt 0:10:27]} 30. Rc5 {[%emt 0:00:00]} c6 {[%emt 0:00:03]} 31. Ng8 {[%emt 0:02:46]} Bg7 {[%emt 0:03:09]} 32. Ne7+ {[%emt 0:01:08]} Kxf7 {[%emt 0:00:12]} 33. Nf5 {[%emt 0:00:24]} b6 {[%emt 0:04:56]} 34. Nxg7 {[%emt 0:02:17]} bxc5 {[%emt 0:00:07]} 35. Nxe6 {[%emt 0:00:03]} Kxe6 {[%emt 0:00:12]} 36. Bxc5 {[%emt 0:01:03]} Kd5 {[%emt 0:02:54]} 37. Be3 {[%emt 0:01:56]} Kc4 {[%emt 0:00:36]} 38. h4 {[%emt 0:00:44]} Kxb4 {[%emt 0:00:41]} 39. Kc2 {[%emt 0:00:41]} Kc4 {[%emt 0:00:12]} 40. Bg5 {[%emt 0:00:22]} a5 {[%emt 0:01:07]} 41. Kd2 {[%emt 0:02:51]} Re8 {[%emt 0:00:59]} 42. Bf6 {[%emt 0:00:54]} a4 {[%emt 0:00:10]} 43. Bg7 {[%emt 0:02:30]} Kb3 {[%emt 0:02:32]} 44. Kd3 {[%emt 0:02:20]} c5 {[%emt 0:01:08]} 45. Bf6 {[%emt 0:00:26]} c4+ {[%emt 0:00:26]} 46. Kd2 {[%emt 0:03:15]} Rf8 {[%emt 0:02:59]} 47. Be5 {[%emt 0:01:56]} Rf2+ {[%emt 0:00:12]} 0-1

[Event "French Top 16-A 2024"]
[Site "Chartres"]
[Date "2024.06.01"]
[Round "2.15"]
[White "Guichard, Pauline"]
[Black "Lemonnier, Remi"]
[Result "1-0"]
[ECO "A52"]
[WhiteElo "2362"]
[BlackElo "2022"]
[Annotator "RC"]
[PlyCount "59"]
[EventDate "2024.06.01"]
[EventType "team-tourn"]
[EventCountry "FRA"]
[SourceTitle "playchess.com"]
[Source "ChessBase"]
[SourceQuality "1"]
[TimeControl "40/5400+30:1800+30"]

1. d4 {[%emt 0:00:14]} Nf6 {[%emt 0:00:12]} 2. c4 {[%emt 0:00:10]} e5 {[%emt 0:00:15]} 3. dxe5 {[%emt 0:00:38]} Ng4 {[%emt 0:00:07]} 4. e4 {[%emt 0:00:33]} Nxe5 {[%emt 0:00:15]} 5. f4 {[%emt 0:00:06]} Nec6 {[%emt 0:00:16]} 6. Be3 {[%emt 0:01:24]} Bb4+ {[%emt 0:01:21]} 7. Nc3 {[%emt 0:04:11]} Bxc3+ {[%emt 0:00:46]} 8. bxc3 {[%emt 0:00:04]} Na6 {[%emt 0:01:29]} 9. Nf3 {[%emt 0:14:04]} Qe7 {[%emt 0:02:06]} 10. Nd2 {[%emt 0:00:15]} b6 {[%emt 0:02:28]} 11. Be2 {[%emt 0:03:35]} Qh4+ {[%emt 0:04:20]} 12. g3 {[%emt 0:00:55]} Qe7 {[%emt 0:00:05]} 13. O-O {[%emt 0:02:16]} Bb7 {[%emt 0:00:40]} 14. Qc2 {[%emt 0:05:03]} O-O-O {[%emt 0:02:52]} 15. Nb3 {[%emt 0:05:07]} f5 {[%emt 0:05:57]} 16. e5 {[%emt 0:02:58]} g6 {[%emt 0:07:55]} 17. Bf3 {[%emt 0:05:44]} d6 {[%emt 0:06:57]} 18. Qg2 {[%emt 0:01:38]} Nab8 {[%emt 0:16:44]} 19. Nd4 {[%emt 0:02:50]} Na5 {[%emt 0:10:44]} 20. Bxb7+ {[%emt 0:02:56]} Nxb7 {[%emt 0:00:10]} 21. Nb5 {[%emt 0:00:30]} c6 {[%emt 0:05:05]} 22. Nxa7+ {[%emt 0:06:53]} Kc7 {[%emt 0:00:03]} 23. Rab1 {[%emt 0:08:15]} Nc5 {[%emt 0:05:53]} 24. Bxc5 {[%emt 0:00:43]} dxc5 {[%emt 0:00:07]} 25. Qb2 {[%emt 0:00:29]} Nd7 {[%emt 0:01:59]} 26. Rfd1 {[%emt 0:01:17]} Ra8 {[%emt 0:12:40]} 27. Nxc6 {[%emt 0:00:43]} Kxc6 {[%emt 0:02:19]} 28. Qb5+ {[%emt 0:01:10]} Kc7 {[%emt 0:00:05]} 29. Rd6 {[%emt 0:00:12]} Ra7 {[%emt 0:04:40]} 30. Rxd7+ {[%emt 0:00:53]} 1-0

[Event "French Top 16-A 2024"]
[Site "Chartres"]
[Date "2024.06.01"]
[Round "2.15"]
[White "Joslin, Jerome"]
[Black "Sochacki, Christophe"]
[Result "0-1"]
[ECO "D08"]
[WhiteElo "2003"]
[BlackElo "2451"]
[Annotator "TA"]
[PlyCount "38"]
[EventDate "2024.06.01"]
[EventType "team-tourn"]
[EventCountry "FRA"]
[SourceTitle "playchess.com"]
[Source "ChessBase"]
[SourceQuality "1"]
[TimeControl "40/5400+30:1800+30"]

{[%evp 9,38,60,58,35,33,27,27,14,12,-17,0,-32,-25,-31,0,-7,-4,-7,-6,0,0,0,0,0,0,-51,-52,-258,-249,-29992,-29993]} 1. d4 {[%emt 0:00:03][%cal Bd2d4,Bd4e5][%mdl 32]} d5 {[%emt 0:04:19]} 2. c4 {[%emt 0:00:18]} e5 {[%emt 0:00:29]} 3. dxe5 {[%emt 0:00:56]} d4 {[%emt 0:00:06]} 4. Nf3 {[%emt 0:00:51]} Nc6 {[%emt 0:00:11]} 5. a3 {[%emt 0:00:13]} g6 {[%emt 0:00:36]} 6. g3 {[%emt 0:03:11]} Bg7 {[%emt 0:00:44]} 7. Bg2 {[%emt 0:02:12][%cal Bf1g2,Bg2f3,Bf3b7][%mdl 32]} Nxe5 {[%emt 0:01:02]} 8. Nbd2 {[%emt 0:05:45] White has an edge.} (8. Qxd4 $2 Nxf3+ 9. exf3 Qxd4 $19 (9... Bxd4 $2 10. O-O $19)) 8... Nxf3+ {[%emt 0:03:59]} 9. Bxf3 {[%emt 0:01:23]} Ne7 {[%emt 0:04:33]} 10. Nb3 {[%emt 0:06:33]} O-O {[%emt 0:02:25]} 11. O-O {[%emt 0:03:23]} Bh3 {[%emt 0:00:58]} 12. Bxb7 {[%emt 0:11:37]} Bxf1 {[%emt 0:16:59]} 13. Bxa8 {[%emt 0:03:57]} Bxe2 {[%emt 0:01:17]} 14. Qxe2 {[%emt 0:00:17]} d3 $1 {[%emt 0:06:18]} 15. Qe4 {[%emt 0:10:46]} Qxa8 {[%emt 0:00:19]} 16. Qxd3 {[%emt 0:07:51]} (16. Qxe7 Re8 17. Qb4 (17. Qxc7 $2 Re1#) 17... a5 $19) 16... Nf5 {[%emt 0:00:52]} 17. Qc2 {[%emt 0:19:36]} (17. Bf4 $11) 17... Qf3 {[%emt 0:13:05][%mdl 1024] Hoping for ...Re8. Black has compensation.} 18. Bd2 $2 {[%emt 0:03:39] [#]} (18. Nd2 $1 $15 Qh5 19. Nb3) 18... Bd4 $1 $19 {[%emt 0:07:06]} 19. Bc3 $2 {[%emt 0:08:44]} (19. Bf4 $19 g5 20. Rf1 (20. Bxg5 $2 {perishes.} Re8 $19) (20. Bxc7 {gets mated.} Ne3) 20... gxf4 21. Qxf5 Qxb3 22. Qxf4 Qxb2 (22... Bxb2 $2 23. Qxc7 Qxa3 24. Rd1 $19) (22... Qxc4 $2 23. Re1 $19) 23. c5) 19... Ne3 {[%emt 0:00:59] Weighted Error Value: White=0.78/Black=0.03 (flawless) .  Loses game:     	White=1     	---        Mistake:       	White=2     	---        Inaccurate:     	White=2     	Black=1      OK:         	White=4     	Black=6      Best:        	---       	Black=1      Strong:       	---       	Black=2} 0-1

[Event "French Top 16-A 2024"]
[Site "Chartres"]
[Date "2024.06.01"]
[Round "2.16"]
[White "Auvray, Juliette"]
[Black "Goldsztejn, Gildas"]
[Result "0-1"]
[ECO "B77"]
[WhiteElo "1969"]
[BlackElo "2412"]
[Annotator "RC"]
[PlyCount "86"]
[EventDate "2024.06.01"]
[EventType "team-tourn"]
[EventCountry "FRA"]
[SourceTitle "playchess.com"]
[Source "ChessBase"]
[SourceQuality "1"]
[TimeControl "40/5400+30:1800+30"]

1. e4 {[%emt 0:01:10]} c5 {[%emt 0:00:08]} 2. Nf3 {[%emt 0:00:04]} d6 {[%emt 0:00:05]} 3. d4 {[%emt 0:00:05]} cxd4 {[%emt 0:00:06]} 4. Nxd4 {[%emt 0:00:06]} Nf6 {[%emt 0:00:06]} 5. Nc3 {[%emt 0:00:07]} g6 {[%emt 0:01:27]} 6. f3 {[%emt 0:01:29]} Bg7 {[%emt 0:00:07]} 7. Be3 {[%emt 0:00:08]} O-O {[%emt 0:00:07]} 8. Qd2 {[%emt 0:00:30]} Nc6 {[%emt 0:00:07]} 9. Bc4 {[%emt 0:01:04]} Nxd4 {[%emt 0:01:00]} 10. Bxd4 {[%emt 0:01:31]} Be6 {[%emt 0:00:08]} 11. Bxe6 {[%emt 0:03:41]} fxe6 {[%emt 0:00:06]} 12. O-O-O {[%emt 0:03:39]} Qa5 {[%emt 0:00:06]} 13. Kb1 {[%emt 0:05:07]} Rac8 {[%emt 0:00:05]} 14. Ne2 {[%emt 0:11:39]} Qxd2 {[%emt 0:02:11]} 15. Rxd2 {[%emt 0:00:06]} a6 {[%emt 0:00:04]} 16. Be3 {[%emt 0:03:16]} Nd7 {[%emt 0:06:48]} 17. Nd4 {[%emt 0:09:04]} Kf7 {[%emt 0:00:43]} 18. c3 {[%emt 0:07:39]} Ne5 {[%emt 0:04:50]} 19. Re2 {[%emt 0:02:55]} Nc4 {[%emt 0:03:19]} 20. Bc1 {[%emt 0:04:43]} b5 {[%emt 0:03:01]} 21. a3 {[%emt 0:04:15]} Rc7 {[%emt 0:05:48]} 22. Rf1 {[%emt 0:03:04]} Rb8 {[%emt 0:09:19]} 23. Nc2 {[%emt 0:05:27]} Ne5 {[%emt 0:15:19]} 24. Nb4 {[%emt 0:05:59]} Ra8 {[%emt 0:01:59]} 25. f4 {[%emt 0:01:32]} Nd7 {[%emt 0:07:52]} 26. g4 {[%emt 0:04:26]} a5 {[%emt 0:01:44]} 27. Nc2 {[%emt 0:02:55]} Rc4 {[%emt 0:04:57]} 28. f5 {[%emt 0:03:17]} Kg8 {[%emt 0:16:33]} 29. Bg5 {[%emt 0:06:14]} Re8 {[%emt 0:01:54]} 30. h4 {[%emt 0:03:35]} Nc5 {[%emt 0:04:22]} 31. Rfe1 {[%emt 0:01:48]} Na4 {[%emt 0:06:14]} 32. fxg6 {[%emt 0:01:39]} hxg6 {[%emt 0:00:09]} 33. h5 {[%emt 0:01:43]} Nxb2 {[%emt 0:01:38]} 34. Kxb2 {[%emt 0:00:33]} Bxc3+ {[%emt 0:00:07]} 35. Kb1 {[%emt 0:01:13]} Bxe1 {[%emt 0:00:09]} 36. Rxe1 {[%emt 0:01:00]} b4 {[%emt 0:03:57]} 37. axb4 {[%emt 0:00:43]} axb4 {[%emt 0:00:02]} 38. hxg6 {[%emt 0:00:46]} Kg7 {[%emt 0:00:34]} 39. Bc1 {[%emt 0:01:01]} Kxg6 {[%emt 0:00:15]} 40. Bb2 {[%emt 0:00:24]} e5 {[%emt 0:00:18]} 41. Re2 {[%emt 0:04:37]} Rh8 {[%emt 0:02:09]} 42. Ka2 {[%emt 0:07:18]} Rh3 {[%emt 0:00:29]} 43. Na1 {[%emt 0:01:36]} Rg3 {[%emt 0:00:32]} 0-1

[Event "French Top 16-A 2024"]
[Site "Chartres"]
[Date "2024.06.01"]
[Round "3.1"]
[White "Lupulescu, Constantin"]
[Black "Pichot, Alan"]
[Result "1/2-1/2"]
[ECO "E52"]
[WhiteElo "2588"]
[BlackElo "2635"]
[Annotator "TA"]
[PlyCount "43"]
[EventDate "2024.06.01"]
[EventType "team-tourn"]
[EventCountry "FRA"]
[SourceTitle "playchess.com"]
[Source "ChessBase"]
[SourceQuality "1"]
[TimeControl "40/5400+30:1800+30"]

{[%evp 19,43,14,10,8,26,-6,29,20,22,31,33,5,7,0,0,0,0,0,1,0,6,0,0,0,0,0]} 1. d4 {[%emt 0:00:02]} Nf6 {[%emt 0:00:15]} 2. c4 {[%emt 0:00:04]} e6 {[%emt 0:00:16]} 3. Nc3 {[%emt 0:00:07]} Bb4 {[%emt 0:00:20]} 4. e3 {[%emt 0:00:07]} b6 {[%emt 0:00:47]} 5. Bd3 {[%emt 0:06:07]} Bb7 {[%emt 0:00:30]} 6. Nf3 {[%emt 0:00:35]} O-O {[%emt 0:00:15]} 7. O-O {[%emt 0:03:06]} d5 {[%emt 0:00:37]} 8. a3 {[%emt 0:04:54]} Bd6 {[%emt 0:03:32]} 9. b4 {[%emt 0:03:20]} dxc4 {[%emt 0:07:36]} 10. Bxc4 {[%emt 0:00:18]} Nbd7 {[%emt 0:00:21]} 11. Bb2 {[%emt 0:01:08]} a6 {[%emt 0:08:33]} 12. Qe2 {[%emt 0:09:42]} e5 {[%emt 0:04:52]} 13. Nxe5 {[%emt 0:08:45] White has an edge.} Nxe5 {[%emt 0:00:56]} 14. dxe5 {[%emt 0:00:05]} Bxe5 {[%emt 0:00:06]} 15. Rad1 {[%emt 0:01:09]} (15. f4 {simplifies} Bxc3 16. Bxc3 Qe7 17. Rac1) 15... Qe7 {[%emt 0:04:18] The position is equal.} 16. Nd5 {[%emt 0:02:31]} Bxd5 {[%emt 0:00:19]} 17. Bxd5 {[%emt 0:00:19]} Nxd5 {[%emt 0:00:21]} 18. Rxd5 {[%emt 0:00:08]} Bxb2 {[%emt 0:00:17]} 19. Qxb2 {[%emt 0:04:12]} Rfd8 {[%emt 0:04:16]} 20. Rfd1 {[%emt 0:02:49]} Rxd5 {[%emt 0:06:48]} 21. Rxd5 {[%emt 0:00:30]} c6 {[%emt 0:01:12]} 22. Rd3 {[%emt 0:03:23] An uneventful encounter.   Weighted Error Value: White=0.13 (very precise) /Black=0.06 (flawless) .  Inaccurate:     	White=2     	Black=1      OK:         	---       	Black=5} 1/2-1/2

[Event "French Top 16-A 2024"]
[Site "Chartres"]
[Date "2024.06.01"]
[Round "3.1"]
[White "Alonso Rosell, Alvar"]
[Black "Erigaisi Arjun"]
[Result "0-1"]
[ECO "A20"]
[WhiteElo "2556"]
[BlackElo "2762"]
[Annotator "TA"]
[PlyCount "70"]
[EventDate "2024.06.01"]
[EventType "team-tourn"]
[EventCountry "FRA"]
[SourceTitle "playchess.com"]
[Source "ChessBase"]
[SourceQuality "1"]
[TimeControl "40/5400+30:1800+30"]

{[%evp 9,70,6,19,0,0,-5,0,0,0,0,0,-20,-24,-27,0,-1,0,-41,-39,-39,-44,-52,-10,-51,-48,-53,-59,-51,-64,-58,-53,-110,-106,-136,-123,-169,-171,-205,-184,-218,-181,-260,-174,-248,-234,-243,-242,-261,-200,-316,-346,-406,-335,-444,-449,-459,-455,-454,-448,-431,-306,-891,-550]} 1. c4 {[%emt 0:00:05]} e5 {[%emt 0:04:14]} 2. g3 {[%emt 0:00:10]} Nf6 {[%emt 0:01:47]} 3. Bg2 {[%emt 0:00:31]} h6 {[%emt 0:00:41]} 4. Nc3 {[%emt 0:05:29]} Bb4 {[%emt 0:01:33]} 5. e4 {[%emt 0:06:31]} Bxc3 {[%emt 0:12:38]} 6. dxc3 {[%emt 0:02:11] A20: English Opening: 1...e5.} d6 {[%emt 0:00:41]} 7. Qc2 {[%emt 0:14:09]} a5 {[%emt 0:01:49]} 8. a4 {[%emt 0:22:54]} O-O {[%emt 0:05:18]} 9. Nf3 {[%emt 0:01:06]} Na6 {[%emt 0:00:23]} 10. Nd2 {[%emt 0:08:57]} Nc5 {[%emt 0:02:48]} 11. Nf1 {[%emt 0:05:01]} Bd7 {[%emt 0:03:33]} 12. Ne3 $146 {[%emt 0:01:17]} ({Predecessor:} 12. Be3 b6 13. Bxc5 bxc5 14. Ne3 Rb8 15. O-O Qc8 16. f4 Re8 17. Qf2 exf4 18. Qxf4 Rxb2 {0-1 Holly,A (2009)-Sorkovsky,M (2143) SVK-chT1E 1920 2019 (10.5)}) 12... Ra6 {[%emt 0:00:47]} 13. O-O {[%emt 0:10:40]} Qe8 {[%emt 0:02:01][%cal Rd7a4]} 14. b4 {[%emt 0:01:37]} axb4 {[%emt 0:01:25]} (14... Nxa4 $2 15. b5 $18) 15. cxb4 {[%emt 0:01:32]} Bxa4 {[%emt 0:12:34]} (15... Nxa4 $2 16. b5 Bxb5 17. cxb5 Qxb5 18. Nd5 (18. Qxc7 $2 Rc6 $19) 18... Nxd5 19. exd5 $18) 16. Qb1 {[%emt 0:01:29]} Nb3 {[%emt 0:00:07]} 17. b5 {[%emt 0:06:07]} Nxa1 {[%emt 0:01:06]} 18. bxa6 {[%emt 0:00:07]} Nb3 {[%emt 0:00:04]} 19. axb7 {[%emt 0:00:09]} Qc6 {[%emt 0:00:13]} 20. Qa2 {[%emt 0:06:34]} (20. Nd5 $1 $15 Nxd5 (20... Qxc4 21. Nxf6+ gxf6 22. Bxh6 $16) 21. cxd5 Qxb7 22. Qa2 Nxc1 23. Rxc1) 20... Rb8 $1 $17 {[%emt 0:00:34]} (20... Nxe4 $2 21. Qb1 (21. Bxe4 Qxe4 22. Qxa4 Nd4 $18) 21... Qxb7 (21... f5 $2 22. Nxf5 Qxb7 23. Bxe4 $18) 22. Bxe4 $18 (22. Qxe4 Qxe4 23. Bxe4 Bd7 $18)) 21. Ba3 {[%emt 0:02:52]} Rxb7 {[%emt 0:01:14]} (21... Qxb7 22. Bxd6 cxd6 23. Qxa4 $11) 22. c5 {[%emt 0:00:10]} dxc5 $19 {[%emt 0:07:53][%cal Oc6e6]} (22... Nxe4 23. Nf5 Kh8 (23... Nbxc5 $2 24. Ne7+ Kh7 25. Nxc6 $18) 24. cxd6 $18 (24. Ne7 Qd7 $18)) 23. f4 {[%emt 0:00:38]} Qe6 {[%emt 0:02:11]} (23... Nxe4 24. Nf5 Kh8 25. Re1 $16) 24. fxe5 {[%emt 0:00:41]} Nd7 {[%emt 0:00:04][%cal Ob3d4]} 25. Nd5 {[%emt 0:01:30]} (25. Bb2 $142 Nd2 26. Ra1) 25... Bc6 {[%emt 0:05:25][%cal Ob3d4]} (25... Qxe5 26. Bb2 Qe6 (26... Nd4 $2 27. Qxa4 Rxb2 28. Qxd7 $18) 27. Qxa4 $11) 26. Nf4 {[%emt 0:00:24]} (26. Bb2 {keeps fighting.}) 26... Qxe5 $19 {[%emt 0:01:56]} 27. Bb2 {[%emt 0:00:06]} Nd4 {[%emt 0:00:08][%cal Ob7b2] ...Rxb2! would now be deadly.} 28. Ba1 {[%emt 0:00:47]} Bb5 {[%emt 0:03:11]} ({Not} 28... Bxe4 29. Re1 $16) 29. Rf2 {[%emt 0:00:40]} (29. Rd1 $142) 29... Rb6 $19 {[%emt 0:00:52] Strongly threatening ...Ra6.} 30. Qd5 {[%emt 0:00:35]} Bc6 {[%emt 0:02:02]} 31. Qa2 {[%emt 0:00:25] Prevents Rb1+.} Bxe4 {[%emt 0:00:18]} 32. Bxd4 {[%emt 0:00:33]} cxd4 {[%emt 0:04:37]} (32... Qxd4 33. Ne2 Rb1+ 34. Qxb1 $17) 33. Re2 {[%emt 0:00:22]} Rb1+ {[%emt 0:00:18]} 34. Kf2 {[%emt 0:00:05]} Nf6 {[%emt 0:00:04]} 35. h3 $2 {[%emt 0:00:57] Wards off Ng4+} (35. Bxe4 Nxe4+ 36. Kg2) 35... Rb8 {[%emt 0:00:21]} ({Worse is} 35... g5 36. Qxb1 $11) 0-1

[Event "French Top 16-A 2024"]
[Site "Chartres"]
[Date "2024.06.01"]
[Round "3.2"]
[White "Ter-Sahakyan, Samvel"]
[Black "Demuth, Adrien"]
[Result "1/2-1/2"]
[ECO "B06"]
[WhiteElo "2652"]
[BlackElo "2506"]
[Annotator "TA"]
[PlyCount "42"]
[EventDate "2024.06.01"]
[EventType "team-tourn"]
[EventCountry "FRA"]
[SourceTitle "playchess.com"]
[Source "ChessBase"]
[SourceQuality "1"]
[TimeControl "40/5400+30:1800+30"]

{[%evp 11,42,37,35,14,34,28,33,36,23,-77,-20,-66,-12,-26,0,0,-1,-31,50,18,32,37,30,-150,-135,-153,-182,-209,-25,-163,-166,-157,-171]} 1. e4 {[%emt 0:00:04]} g6 {[%emt 0:01:03]} 2. d4 {[%emt 0:01:12]} Bg7 {[%emt 0:00:05]} 3. Nc3 {[%emt 0:01:30]} d6 {[%emt 0:00:22]} 4. Be3 {[%emt 0:02:15]} a6 {[%emt 0:00:14]} 5. Nf3 {[%emt 0:08:08]} b5 {[%emt 0:06:15]} 6. Bd3 {[%emt 0:00:50]} Bb7 {[%emt 0:06:30]} 7. e5 {[%emt 0:09:29] Prevents Nf6.} Nd7 {[%emt 0:15:43] [#]} 8. e6 $1 {[%emt 0:29:50]} fxe6 {[%emt 0:01:11]} 9. Ng5 {[%emt 0:00:10] White is slightly better.} Nf8 {[%emt 0:01:33]} 10. h4 {[%emt 0:05:02]} (10. O-O $11 {keeps the balance.}) 10... Qd7 {[%emt 0:20:42]} ({Black should try} 10... Bxg2 $17 11. Rg1 Bc6) 11. h5 {[%emt 0:04:25]} (11. a4 $11 {was preferrable.}) 11... Nh6 {[%emt 0:01:23]} ({Better is} 11... Bxg2 $15 12. Rg1 Bc6) 12. a4 {[%emt 0:09:17]} b4 {[%emt 0:04:07]} 13. Nce4 {[%emt 0:01:25]} Nf5 {[%emt 0:11:00]} 14. Nf3 {[%emt 0:01:10]} gxh5 {[%emt 0:10:31]} ({Black should play} 14... c5 $15) 15. Nfg5 $1 $14 {[%emt 0:06:19]} Ng6 {[%emt 0:02:30]} 16. Qxh5 {[%emt 0:04:50] Strongly threatening Ng3.} O-O-O {[%emt 0:00:37]} 17. Bc4 $2 {[%emt 0:05:44] [#]} (17. Nf7 $11) 17... Bd5 $1 $36 {[%emt 0:04:21][%mdl 2048] Black is on the roll.} (17... Nxd4 18. Bxd4 (18. O-O-O Qxa4 19. Bxd4 Bxd4 $11) 18... Nf4 (18... Bxd4 $2 19. Bxe6 Bxb2 20. Bxd7+ $18) 19. Qf3 Bxd4 20. Bxa6 $11 (20. Qxf4 e5 $11)) (17... Bxd4 $2 18. Bxe6 Nxe3 19. Bxd7+ Rxd7 20. fxe3 $18) 18. Bxa6+ {[%emt 0:00:17]} Kb8 {[%emt 0:00:05] And now ...Qc6 would win.} 19. Rd1 {[%emt 0:04:34]} (19. Nxh7 $2 Rxh7 (19... Bxe4 $2 20. Qxg6 Qc6 21. Bd3 $19) (19... Bxd4 $2 20. Bxd4 Nxd4 21. O-O-O $19) (19... Nxe3 $2 20. fxe3 Bxe4 21. Qa5 $19) 20. Qxh7 Rh8 $19 (20... Bxe4 21. Qxg6 Qc6 22. Bd3 $14) (20... Bxe4 21. Qxg6 Bxc2 22. Bb5 $11)) 19... h6 $2 {[%emt 0:05:23]} (19... Qxa4 $19 20. Bc4 Bxe4 (20... Bxc4 21. b3 $17) (20... Qxc2 $2 21. Bxd5 exd5 22. Ng3 $19) 21. Nxe4 Qxc2) 20. Qxg6 {[%emt 0:01:37]} (20. Nf7 $1 $11 Nxe3 21. fxe3 Bxe4 22. Nxd8 Rxd8 23. Bd3 Bxd3 24. Rxd3) 20... hxg5 $19 {[%emt 0:00:04]} 21. Rxh8 {[%emt 0:00:22]} Rxh8 {[%emt 0:00:05] Weighted Error Value: White=0.42/Black=0.34.  Missed win:     	---       	Black=1      Mistake:       	White=4     	Black=3      Inaccurate:     	White=1     	---        OK:         	White=3     	Black=4      Best:        	White=1     	Black=2      Strong:       	White=1     	Black=1} ({But not} 21... Bxh8 22. Bb5 Qc8 (22... c6 23. Bd3 $15) 23. Nxg5 $17) 1/2-1/2